fUSD/lending_fUSD_20260414
["ID","MTS","AMOUNT","RATE_DAILY","PERIOD"]
[420480076,1776141841511,300.0,8.762e-05,2]
[420480077,1776141847375,448.0,8.763e-05,3]
[420480078,1776141884421,250.0,8.671e-05,2]
[420480079,1776141901124,160.0,8.762e-05,2]
[420480080,1776141901161,1200.0,8.762e-05,2]
[420480081,1776141902072,150.0,8.762e-05,2]
[420480082,1776141907536,-9238.06,8.763e-05,2]
[420480083,1776141907667,-3685.64283932,8.763e-05,2]
[420480084,1776141907717,-2628.72432136,8.763e-05,2]
[420480085,1776141907927,-3751.4753,8.763e-05,2]
[420480086,1776141907996,-2497.0594,8.763e-05,2]
[420480087,1776141908049,-1099.2216,8.763e-05,2]
[420480088,1776141908101,-2500.0,8.763e-05,2]
[420480089,1776141908177,-3575.133,8.763e-05,2]
[420480090,1776141908217,-193.0,8.771e-05,2]
[420480091,1776141908262,-578.20924308,8.779e-05,2]
[420480092,1776141908306,-500.0,8.779e-05,2]
[420480093,1776141908466,-1402.5131,8.822e-05,2]
[420480094,1776141908481,-127.84445692,8.83e-05,2]
[420480095,1776141908550,-872.15554308,8.83e-05,2]
[420480096,1776141908594,-500.0,8.834e-05,2]
[420480097,1776141908639,-1000.0,8.835e-05,2]
[420480098,1776141908677,-312.64,8.842e-05,2]
[420480099,1776141908715,-163.91689428,8.843e-05,2]
[420480100,1776141908754,-551.43343662,8.843e-05,2]
[420480101,1776141908796,-500.0,8.843e-05,2]
[420480102,1776141908838,-500.47252773,8.843e-05,2]
[420480103,1776141908875,-500.0,8.843e-05,2]
[420480104,1776141909440,-78.53475692,8.767e-05,2]
[420480105,1776141909478,-171.46524308,8.767e-05,2]
[420480106,1776141909504,-328.53475692,8.843e-05,2]
[420480107,1776141909572,-52.93679819,8.843e-05,2]
[420480108,1776141909600,-447.53572954,8.843e-05,2]
[420480109,1776141909645,-52.46427046,8.843e-05,2]
[420480110,1776141909659,-447.53572954,8.843e-05,2]
[420480111,1776141909688,-52.46427046,8.843e-05,2]
[420480112,1776141909718,-146.30892612,8.843e-05,2]
[420480113,1776141910307,-354.37244909,8.843e-05,2]
[420480114,1776141910405,-500.0,8.843e-05,2]
[420480115,1776141910522,-500.0,8.843e-05,2]
[420480116,1776141910566,-610.3510203,8.843e-05,2]
[420480117,1776141910610,-500.42337708,8.843e-05,2]
[420480118,1776141910670,-501.08118823,8.843e-05,2]
[420480119,1776141910712,-200.0,8.858e-05,2]
[420480120,1776141910753,-721.12765535,8.858e-05,2]
[420480121,1776141910800,-796.91114873,8.858e-05,2]
[420480122,1776141910939,-631.47632244,8.858e-05,2]
[420480123,1776141910985,-151.0,8.858e-05,2]
[420480124,1776141911028,-200.0,8.858e-05,2]
[420480125,1776141911072,-500.0,8.858e-05,2]
[420480126,1776141911108,-209.40437684,8.858e-05,2]
[420480127,1776141911144,-743.50770149,8.858e-05,2]
[420480128,1776141911195,-500.0,8.858e-05,2]
[420480129,1776141911237,-500.0,8.858e-05,2]
[420480130,1776141911274,-174.61919141,8.858e-05,2]
[420480131,1776141911315,-500.0,8.858e-05,2]
[420480132,1776141911358,-500.0,8.858e-05,2]
[420480133,1776141911399,-279.99481564,8.858e-05,2]
[420480134,1776141911617,-220.00518436,8.858e-05,2]
[420480135,1776141911677,-500.0,8.858e-05,2]
[420480136,1776141911736,-500.0,8.858e-05,2]
[420480137,1776141911794,-500.0,8.858e-05,2]
[420480138,1776141911838,-235.75327194,8.858e-05,2]
[420480139,1776141911898,-500.0,8.858e-05,2]
[420480140,1776141911941,-201.24499956,8.858e-05,2]
[420480141,1776141912002,-500.0,8.858e-05,2]
[420480142,1776141912056,-693.3919763,8.858e-05,2]
[420480143,1776141912104,-151.0,8.858e-05,2]
[420480144,1776141912150,-279.9045709,8.858e-05,2]
[420480145,1776141912203,-500.0,8.862e-05,2]
[420480146,1776141913095,426.0,8.763e-05,3]
[420480147,1776141913395,11.40999388,8.763e-05,3]
[420480148,1776141913422,143.59000612,8.763e-05,3]
[420480149,1776141915646,160.0128224,8.843e-05,2]
[420480150,1776141916529,500.0,8.843e-05,2]
[420480151,1776141916627,500.1303098,8.843e-05,2]
[420480152,1776141916986,160.02455239,8.843e-05,2]
[420480153,1776141917068,8536.25230929,8.763e-05,2]
[420480154,1776141917095,9902.38569071,8.763e-05,2]
[420480155,1776141918552,97.62430929,8.862e-05,2]
[420480156,1776141918583,402.37569071,8.862e-05,2]
[420480157,1776141918672,500.0,8.862e-05,2]
[420480158,1776141918807,500.0,8.862e-05,2]
[420480159,1776141918851,500.0,8.862e-05,2]
[420480160,1776141918915,500.0,8.862e-05,2]
[420480161,1776141918989,500.0,8.862e-05,2]
[420480162,1776141919046,500.0,8.862e-05,2]
[420480163,1776141919106,500.0,8.862e-05,2]
[420480164,1776141919223,500.0,8.862e-05,2]
[420480165,1776141919307,500.0,8.862e-05,2]
[420480166,1776141919418,500.0,8.862e-05,2]
[420480167,1776141919543,500.0,8.862e-05,2]
[420480168,1776141919597,500.0,8.862e-05,2]
[420480169,1776141919654,500.0,8.862e-05,2]
[420480170,1776141919747,500.0,8.862e-05,2]
[420480171,1776141919787,500.0,8.862e-05,2]
[420480172,1776141919835,500.0,8.862e-05,2]
[420480173,1776141919874,608.62788982,8.862e-05,2]
[420480174,1776141919920,500.0,8.862e-05,2]
[420480175,1776141921676,349.34400429,8.843e-05,2]
[420480176,1776141922138,139.66241518,8.763e-05,2]
[420480177,1776141922230,2360.33758482,8.763e-05,2]
[420480178,1776141922460,500.0,8.843e-05,2]
[420480179,1776141926225,500.0,8.862e-05,2]
[420480180,1776141926838,500.0,8.843e-05,2]
[420480181,1776141927029,500.29600956,8.843e-05,2]
[420480182,1776141929531,165.19144455,8.843e-05,2]
[420480183,1776141930027,167.81704065,8.843e-05,2]
[420480184,1776141931475,500.25057568,8.843e-05,2]
[420480185,1776141932526,500.0,8.862e-05,2]
[420480186,1776141932619,500.0,8.862e-05,2]
[420480187,1776141932669,500.0,8.862e-05,2]
[420480188,1776141932719,500.0,8.862e-05,2]
[420480189,1776141932778,500.0,8.862e-05,2]
[420480190,1776141932840,500.0,8.862e-05,2]
[420480191,1776141933104,500.0,8.862e-05,2]
[420480192,1776141933157,500.0,8.862e-05,2]
[420480193,1776141933206,500.0,8.862e-05,2]
[420480194,1776141933257,306.11734474,8.862e-05,2]
[420480195,1776141933290,193.88265526,8.862e-05,2]
[420480196,1776141933353,500.0,8.862e-05,2]
[420480197,1776141960662,9306.12734474,8.762e-05,2]
[420480198,1776141960705,10000.01,8.762e-05,2]
[420480199,1776141960748,7747.42855526,8.762e-05,2]
[420480200,1776141965397,404.0,8.862e-05,3]
[420480201,1776142021324,300.0,8.862e-05,2]
[420480202,1776142029106,578.20924308,8.863e-05,2]
[420480203,1776142030415,970.37220166,8.863e-05,2]
[420480204,1776142030452,458.01526951,8.863e-05,2]
[420480205,1776142030491,500.0,8.863e-05,2]
[420480206,1776142030756,9041.99473049,8.863e-05,2]
[420480207,1776142030781,510.17313498,8.863e-05,2]
[420480208,1776142030821,200.0,8.863e-05,2]
[420480209,1776142030855,721.12765535,8.863e-05,2]
[420480210,1776142030937,209.40437684,8.863e-05,2]
[420480211,1776142031931,384.0,8.862e-05,3]
[420480212,1776142037832,200.0,8.863e-05,2]
[420480213,1776142040982,1000.0,8.77e-05,2]
[420480214,1776142041079,151.0,8.863e-05,2]
[420480215,1776142043962,-6927.90766135,8.863e-05,2]
[420480216,1776142044178,-10000.01,8.863e-05,2]
[420480217,1776142047936,-776.42563213,8.863e-05,2]
[420480218,1776142048008,-8447.15873574,8.863e-05,2]
[420480219,1776142048053,-10000.01,8.863e-05,2]
[420480220,1776142048183,-10000.01,8.863e-05,2]
[420480221,1776142048331,-10000.01,8.863e-05,2]
[420480222,1776142048522,-10000.01,8.863e-05,2]
[420480223,1776142048623,-10000.01,8.863e-05,2]
[420480224,1776142048757,-10000.01,8.863e-05,2]
[420480225,1776142048924,-10000.01,8.863e-05,2]
[420480226,1776142049060,-10000.01,8.863e-05,2]
[420480227,1776142051495,-209.40437684,8.863e-05,2]
[420480228,1776142051854,500.0,8.863e-05,2]
[420480229,1776142052110,500.0,8.863e-05,2]
[420480230,1776142052524,500.0,8.863e-05,2]
[420480231,1776142053113,500.0,8.863e-05,2]
[420480232,1776142053955,500.0,8.863e-05,2]
[420480233,1776142054364,500.0,8.863e-05,2]
[420480234,1776142054797,174.61919141,8.863e-05,2]
[420480235,1776142054986,500.0,8.863e-05,2]
[420480236,1776142055604,500.0,8.863e-05,2]
[420480237,1776142055742,430.95881578,8.763e-05,2]
[420480238,1776142056206,500.0,8.863e-05,2]
[420480239,1776142056796,500.0,8.863e-05,2]
[420480240,1776142057429,500.0,8.863e-05,2]
[420480241,1776142058839,-130866.15440291,8.863e-05,2]
[420480242,1776142058875,-250.0,8.864e-05,2]
[420480243,1776142058910,-484.044,8.864e-05,2]
[420480244,1776142058973,-1000.0,8.871e-05,2]
[420480245,1776142059015,-1000.0,8.886e-05,2]
[420480246,1776142059044,-1000.0,8.897e-05,2]
[420480247,1776142059083,-294.63099328,8.898e-05,2]
[420480248,1776142062494,858.583723,8.818e-05,2]
[420480249,1776142062802,412.11643922,8.863e-05,2]
[420480250,1776142066606,-150.0,8.909e-05,2]
[420480251,1776142066834,-500.0,8.918e-05,2]
[420480252,1776142066864,-9905.5980765,8.918e-05,2]
[420480253,1776142066894,-151.0,8.918e-05,2]
[420480254,1776142066934,-1000.0,8.929e-05,2]
[420480255,1776142066998,-30243.57335051,8.93e-05,2]
[420480256,1776142067040,-150.0,8.931e-05,2]
[420480257,1776142067085,-749.69364401,8.932e-05,2]
[420480258,1776142067138,-1000.0,8.939e-05,2]
[420480259,1776142067176,-155.98750833,8.957e-05,2]
[420480260,1776142067206,-1000.0,8.958e-05,2]
[420480261,1776142067243,-500.0,8.973e-05,2]
[420480262,1776142067285,-288.60834146,8.973e-05,2]
[420480263,1776142067321,-151.0,8.973e-05,2]
[420480264,1776142067347,-500.0,8.986e-05,2]
[420480265,1776142067380,-1303.44754542,8.99e-05,2]
[420480266,1776142067417,-440.38918057,8.994e-05,2]
[420480267,1776142067452,-150.0,8.994e-05,2]
[420480268,1776142067516,-1382.09009037,9e-05,2]
[420480269,1776142067827,150.0,8.863e-05,2]
[420480270,1776142067856,129.9045709,8.863e-05,2]
[420480271,1776142081600,-502.0,9.014e-05,2]
[420480272,1776142085158,2500.0,8.763e-05,2]
[420480273,1776142097090,-1570.36757188,9.014e-05,2]
[420480274,1776142097129,-152.0,9.014e-05,2]
[420480275,1776142097160,-167.0,9.014e-05,2]
[420480276,1776142102022,1000.0,8.757e-05,2]
[420480277,1776142123957,-200.0,9.022e-05,2]
[420480278,1776142140254,-279.0,9.022e-05,2]
[420480279,1776142143028,1000.0,8.875e-05,2]
[420480280,1776142143691,484.71381786,8.817e-05,2]
[420480281,1776142144417,172.92276185,8.862e-05,2]
[420480282,1776142144465,207.05447176,8.862e-05,2]
[420480283,1776142144509,266.8965379,8.862e-05,2]
[420480284,1776142144553,219.93902778,8.862e-05,2]
[420480285,1776142145679,1322.0,9.022e-05,3]
[420480286,1776142151843,200.0,9e-05,2]
[420480291,1776142154242,163.0,9.022e-05,3]
[420480292,1776142154878,579.70114246,6.708e-05,2]
[420480293,1776142155518,-500.0,9.028e-05,2]
[420480294,1776142155560,-151.0,9.028e-05,2]
[420480310,1776142163873,523.67661973,8.763e-05,2]
[420480330,1776142171916,-150.0,9.034e-05,2]
[420480349,1776142174416,-150.0,9.039e-05,2]
[420480351,1776142174453,-250.0,9.039e-05,2]
[420480352,1776142174495,-190.25427276,9.039e-05,2]
[420480353,1776142174526,-266.05723794,9.039e-05,2]
[420480354,1776142174569,-580.74302959,9.039e-05,2]
[420480355,1776142174606,-500.0,9.039e-05,2]
[420480356,1776142174637,-600.0,9.039e-05,2]
[420480357,1776142174665,-608.90583329,9.039e-05,2]
[420480358,1776142174697,-49944.59251174,9.04e-05,2]
[420480359,1776142174730,-150.0,9.049e-05,2]
[420480360,1776142174759,-150.0,9.065e-05,2]
[420480361,1776142174793,-151.0,9.077e-05,2]
[420480362,1776142174828,-500.0,9.083e-05,2]
[420480364,1776142174857,-151.0,9.083e-05,2]
[420480366,1776142174886,-151.0,9.087e-05,2]
[420480368,1776142174924,-307.0,9.09e-05,5]
[420480391,1776142179570,150.0,8.928e-05,2]
[420480392,1776142179609,9700.01,8.928e-05,2]
[420480393,1776142179638,10000.01,8.928e-05,2]
[420480394,1776142179669,10000.01,8.928e-05,2]
[420480395,1776142179697,10000.01,8.928e-05,2]
[420480396,1776142179722,10000.01,8.928e-05,2]
[420480397,1776142179748,10000.01,8.928e-05,2]
[420480398,1776142179777,10000.01,8.928e-05,2]
[420480399,1776142179800,10000.01,8.928e-05,2]
[420480400,1776142179828,10000.01,8.928e-05,2]
[420480416,1776142228847,25527.187994,7.945e-05,2]
[420480417,1776142232313,-1635.36487997,8.763e-05,2]
[420480418,1776142232332,-1295.9148631,8.763e-05,2]
[420480419,1776142232345,-2993.88054873,8.763e-05,2]
[420480420,1776142232360,-1632.70955247,8.763e-05,2]
[420480421,1776142232470,-2365.49985573,8.763e-05,2]
[420480422,1776142232480,-435.46675575,8.883e-05,2]
[420480423,1776142232496,-2181.41738125,8.883e-05,2]
[420480424,1776142232519,-242.66157226,8.921e-05,2]
[420480428,1776142234075,-540.40776292,8.921e-05,2]
[420480429,1776142234120,-323.3292545,8.921e-05,2]
[420480430,1776142234136,-254.14013485,8.921e-05,2]
[420480431,1776142234182,-59.11145792,8.921e-05,2]
[420480432,1776142234231,-300.0,8.927e-05,2]
[420480433,1776142234257,-10.87786207,8.927e-05,2]
[420480434,1776142234503,-264.00221638,8.927e-05,2]
[420480435,1776142234548,-925.11992155,8.927e-05,2]
[420480436,1776142234557,-1040.16738203,8.928e-05,2]
[420480437,1776142234596,-4675.92415367,8.928e-05,2]
[420480438,1776142234621,-1309.68764366,8.928e-05,2]
[420480439,1776142234668,-326.03172292,8.928e-05,2]
[420480440,1776142234685,-267.37735194,8.928e-05,2]
[420480441,1776142234734,-772.48658868,8.928e-05,2]
[420480442,1776142234769,-257.8752,8.928e-05,2]
[420480443,1776142234787,-72190.91391305,8.928e-05,2]
[420480444,1776142235226,-1000.0,8.928e-05,2]
[420480445,1776142235653,-1000.0,8.928e-05,2]
[420480446,1776142236065,-1000.0,8.928e-05,2]
[420480447,1776142236635,-1000.0,8.928e-05,2]
[420480448,1776142236940,-1000.0,8.928e-05,2]
[420480449,1776142237271,-1000.0,8.928e-05,2]
[420480450,1776142237629,-1000.0,8.928e-05,2]
[420480451,1776142237911,-1000.0,8.928e-05,2]
[420480452,1776142238438,-1000.0,8.928e-05,2]
[420480457,1776142238580,-1000.0,8.928e-05,2]
[420480458,1776142238669,-1222.12293849,8.928e-05,2]
[420480459,1776142238783,-981.27320347,8.928e-05,2]
[420480460,1776142238942,-1000.0,8.928e-05,2]
[420480464,1776142238994,-1000.0,8.928e-05,2]
[420480539,1776142240836,-1000.0,8.928e-05,2]
[420480540,1776142241097,-1000.0,8.928e-05,2]
[420480541,1776142241458,-1000.0,8.928e-05,2]
[420480542,1776142241476,-3683.25893063,8.928e-05,2]
[420480543,1776142242011,-1000.0,8.928e-05,2]
[420480544,1776142242364,-1000.0,8.928e-05,2]
[420480545,1776142242795,-1000.0,8.928e-05,2]
[420480546,1776142243006,-1000.0,8.928e-05,2]
[420480547,1776142243582,-1000.0,8.928e-05,2]
[420480555,1776142245225,-1000.0,8.928e-05,2]
[420480556,1776142245549,-1000.0,8.928e-05,2]
[420480557,1776142245731,-1000.0,8.928e-05,2]
[420480558,1776142245933,-1000.0,8.928e-05,2]
[420480559,1776142246117,-1000.0,8.928e-05,2]
[420480560,1776142246362,-1000.0,8.928e-05,2]
[420480561,1776142246522,-1000.0,8.928e-05,2]
[420480562,1776142246748,-1000.0,8.928e-05,2]
[420480563,1776142246917,-1000.0,8.928e-05,2]
[420480577,1776142248513,-93687.52815398,8.928e-05,2]
[420480578,1776142248527,-2000.76281748,8.928e-05,2]
[420480580,1776142248550,-156.0,8.928e-05,3]
[420480582,1776142248581,-1256.0,8.928e-05,3]
[420480584,1776142248598,-278.0,8.928e-05,2]
[420480586,1776142248633,-2058.71464458,9.011e-05,2]
[420480587,1776142248642,-1312.61292602,9.011e-05,2]
[420480588,1776142248671,-152.0,9.09e-05,2]
[420480589,1776142248681,-312.64,9.116e-05,2]
[420480590,1776142248695,-150.0,9.12e-05,2]
[420480591,1776142248709,-2640.93898882,9.12e-05,2]
[420480592,1776142248729,-500.0,9.138e-05,2]
[420480593,1776142248741,-151.0,9.138e-05,2]
[420480594,1776142248752,-155.98750833,9.19e-05,2]
[420480595,1776142248764,-500.0,9.193e-05,2]
[420480596,1776142248779,-151.0,9.193e-05,2]
[420480597,1776142248790,-2804.73,9.2e-05,2]
[420480598,1776142248800,-500.0,9.2e-05,2]
[420480599,1776142248829,-1929.16,9.2e-05,2]
[420480600,1776142248840,-2000.0,9.247e-05,2]
[420480601,1776142248851,-500.0,9.248e-05,2]
[420480602,1776142248880,-151.0,9.248e-05,2]
[420480603,1776142248890,-500.0,9.255e-05,2]
[420480604,1776142248908,-5109.18,9.264e-05,2]
[420480605,1776142248918,-150.0,9.264e-05,2]
[420480606,1776142248937,-150.0,9.28e-05,2]
[420480607,1776142248961,-150.63361388,9.28e-05,2]
[420480608,1776142248983,-500.0,9.303e-05,2]
[420480609,1776142248997,-151.0,9.303e-05,2]
[420480610,1776142249007,-4199.66751686,9.303e-05,2]
[420480611,1776142249020,-500.0,9.358e-05,2]
[420480612,1776142249029,-151.0,9.358e-05,2]
[420480613,1776142249043,-312.64,9.39e-05,2]
[420480614,1776142249053,-1481.23780761,9.411e-05,2]
[420480615,1776142249063,-200.0,9.411e-05,2]
[420480616,1776142249074,-209.40437685,9.411e-05,2]
[420480617,1776142249090,-217.15233878,9.411e-05,2]
[420480618,1776142249099,-181.08010149,9.411e-05,2]
[420480619,1776142249111,-290.26104003,9.411e-05,2]
[420480620,1776142249126,-500.0,9.413e-05,2]
[420480621,1776142249137,-151.0,9.413e-05,2]
[420480622,1776142249151,-419.0,9.5e-05,2]
[420480623,1776142249171,-1256.0,9.616e-05,3]
[420480624,1776142249183,-5000.0,9.639e-05,2]
[420480625,1776142249196,-92.74374407,9.639e-05,2]
[420480626,1776142249814,-100.25625593,9.639e-05,2]
[420480627,1776142249826,-250.0,9.639e-05,2]
[420480628,1776142249838,-308.63070442,9.664e-05,2]
[420480629,1776142249863,-4.00929558,9.664e-05,2]
[420480630,1776142249874,-5000.0,9.749e-05,2]
[420480631,1776142249884,-250.0,9.749e-05,2]
[420480632,1776142249900,-165.41,9.778e-05,2]
[420480633,1776142249913,-169.19,9.789e-05,2]
[420480634,1776142249925,-500.0,9.789e-05,2]
[420480635,1776142249956,-205.0,9.8e-05,2]
[420480636,1776142249967,-1680.0,9.819e-05,2]
[420480637,1776142250002,-420.0,9.819e-05,2]
[420480638,1776142250014,-250.0,9.915e-05,2]
[420480639,1776142250061,-5000.0,9.931e-05,2]
[420480640,1776142250086,-312.65,9.938e-05,2]
[420480641,1776142250104,-254.0,9.943e-05,2]
[420480642,1776142250142,-1536.04360649,9.959e-05,2]
[420480643,1776142250154,-200.0,9.959e-05,2]
[420480644,1776142250182,-225.18697532,9.959e-05,2]
[420480645,1776142250194,-187.78006525,9.959e-05,2]
[420480646,1776142250230,-317.33739403,9.959e-05,2]
[420480647,1776142250241,-155.0,9.999e-05,2]
[420480648,1776142250278,-155.335,9.999e-05,2]
[420480649,1776142250288,-256.39990963,0.0001,2]
[420480650,1776142250297,-151.0,0.0001,2]
[420480651,1776142250316,-2885.16380974,0.0001,2]
[420480652,1776142250416,-443.4506406,0.0001,2]
[420480653,1776142250436,-4592.69195026,0.0001,2]
[420480654,1776142251259,256.33655893,9.749e-05,30]
[420480655,1776142251898,384.50483839,9.789e-05,30]
[420480656,1776142268399,14479.51095,7.945e-05,2]
[420480658,1776142350437,3309.68,8.428e-05,2]
[420480659,1776142363647,150.85,8.318e-05,2]
[420480660,1776142388859,1130.0,8.318e-05,3]
[420480661,1776142406152,1189.25,4.16e-05,2]
[420480662,1776142406404,1189.25,4.379e-05,2]
[420480663,1776142406572,1189.25,4.598e-05,2]
[420480664,1776142406655,1189.25,4.817e-05,2]
[420480665,1776142406847,652.48,5.036e-05,2]
[420480666,1776142406876,536.77,5.036e-05,2]
[420480667,1776142406931,1189.25,5.255e-05,2]
[420480668,1776142407149,1189.25,5.474e-05,2]
[420480669,1776142407239,1189.25,5.693e-05,2]
[420480670,1776142407314,1189.25,5.912e-05,2]
[420480671,1776142407766,1189.25,6.131e-05,2]
[420480672,1776142407848,1189.25,6.35e-05,2]
[420480673,1776142407913,1189.25,6.569e-05,2]
[420480674,1776142408091,1138.49,6.788e-05,2]
[420480675,1776142408126,50.76,6.788e-05,2]
[420480676,1776142408181,1189.25,7.007e-05,2]
[420480677,1776142408959,1189.25,7.226e-05,2]
[420480678,1776142409314,1189.25,7.444e-05,2]
[420480679,1776142409390,1189.25,7.663e-05,2]
[420480680,1776142409489,1189.25,7.882e-05,2]
[420480681,1776142409546,1189.25,8.101e-05,2]
[420480682,1776142409638,1189.25,8.32e-05,2]
[420480683,1776142422171,156.0,8.32e-05,3]
[420480687,1776142447819,1088.0,8.32e-05,3]
[420480688,1776142464970,164.0,8.32e-05,3]
[420480689,1776142475209,-300.0,8.65e-05,2]
[420480690,1776142475254,-1200.0,8.65e-05,2]
[420480691,1776142475622,-2000.01,8.651e-05,2]
[420480692,1776142475671,-2400.583,8.651e-05,2]
[420480693,1776142475745,-198.844,8.651e-05,2]
[420480694,1776142478708,-310.594,8.651e-05,2]
[420480695,1776142478774,-274.0,8.651e-05,2]
[420480696,1776142478832,-231.1156,8.651e-05,2]
[420480697,1776142478889,-452.0,8.653e-05,2]
[420480698,1776142478941,-452.0,8.653e-05,2]
[420480699,1776142478985,-452.0,8.653e-05,2]
[420480700,1776142479030,-204.5908,8.653e-05,2]
[420480701,1776142479197,-247.4092,8.653e-05,2]
[420480702,1776142481901,-452.0,8.653e-05,2]
[420480703,1776142482035,-452.0,8.653e-05,2]
[420480704,1776142482085,-452.0,8.653e-05,2]
[420480705,1776142482131,-452.0,8.653e-05,2]
[420480706,1776142482176,-452.0,8.653e-05,2]
[420480707,1776142482209,-28.01,8.653e-05,2]
[420480708,1776142482323,-423.99,8.653e-05,2]
[420480709,1776142484733,-452.0,8.653e-05,2]
[420480710,1776142484782,-452.0,8.653e-05,2]
[420480711,1776142484826,-452.0,8.653e-05,2]
[420480712,1776142484867,-452.0,8.653e-05,2]
[420480713,1776142484901,-452.0,8.653e-05,2]
[420480714,1776142484935,-28.01,8.653e-05,2]
[420480715,1776142485058,-423.99,8.653e-05,2]
[420480716,1776142487720,-452.0,8.653e-05,2]
[420480717,1776142487753,-452.0,8.653e-05,2]
[420480718,1776142487785,-452.0,8.653e-05,2]
[420480719,1776142487816,-452.0,8.653e-05,2]
[420480720,1776142487853,-452.0,8.653e-05,2]
[420480721,1776142487897,-28.01,8.653e-05,2]
[420480722,1776142488459,-423.99,8.653e-05,2]
[420480723,1776142490871,-179.55883432,8.651e-05,2]
[420480724,1776142490916,-452.0,8.653e-05,2]
[420480725,1776142490959,-468.85264262,8.653e-05,2]
[420480726,1776142491000,-274.0,8.653e-05,2]
[420480727,1776142511547,156.0,8.653e-05,3]
[420480728,1776142511633,1033.0,8.653e-05,3]
[420480729,1776142535711,150.0,8.653e-05,2]
[420480730,1776142535788,500.0,8.653e-05,2]
[420480731,1776142535838,412.18704612,8.653e-05,2]
[420480732,1776142535861,87.81295388,8.653e-05,2]
[420480733,1776142535909,150.0,8.653e-05,2]
[420480734,1776142535977,500.0,8.653e-05,2]
[420480735,1776142536026,500.0,8.653e-05,2]
[420480736,1776142536125,500.0,8.653e-05,2]
[420480737,1776142536203,500.0,8.653e-05,2]
[420480738,1776142536279,170.72887189,8.653e-05,2]
[420480739,1776142536312,500.0,8.653e-05,2]
[420480740,1776142536371,591.57268297,8.653e-05,2]
[420480741,1776142536406,150.0,8.653e-05,2]
[420480742,1776142536467,500.0,8.653e-05,2]
[420480743,1776142536528,150.0,8.653e-05,2]
[420480744,1776142536567,154.2228643,8.653e-05,2]
[420480745,1776142536659,500.0,8.653e-05,2]
[420480746,1776142536820,45.67262696,8.653e-05,2]
[420480747,1776142538521,-532.15618835,8.653e-05,2]
[420480748,1776142538555,-150.0,8.653e-05,2]
[420480749,1776142538587,-500.0,8.653e-05,2]
[420480750,1776142538631,-500.0,8.653e-05,2]
[420480751,1776142538666,-500.0,8.653e-05,2]
[420480752,1776142538700,-135.6976233,8.653e-05,2]
[420480753,1776142541639,-364.3023767,8.653e-05,2]
[420480754,1776142541707,-500.0,8.653e-05,2]
[420480755,1776142541752,-500.0,8.653e-05,2]
[420480756,1776142541793,-500.0,8.653e-05,2]
[420480757,1776142541843,-500.0,8.653e-05,2]
[420480758,1776142545602,-500.0,8.653e-05,2]
[420480759,1776142545650,-500.0,8.653e-05,2]
[420480760,1776142545733,-500.0,8.653e-05,2]
[420480761,1776142545778,-500.0,8.653e-05,2]
[420480762,1776142545839,-500.0,8.653e-05,2]
[420480763,1776142547607,-500.0,8.653e-05,2]
[420480764,1776142547669,-500.0,8.653e-05,2]
[420480765,1776142547722,-500.0,8.653e-05,2]
[420480766,1776142547802,-500.0,8.653e-05,2]
[420480767,1776142547855,-500.0,8.653e-05,2]
[420480768,1776142550601,-500.0,8.653e-05,2]
[420480769,1776142550641,-500.0,8.653e-05,2]
[420480770,1776142550680,-500.0,8.653e-05,2]
[420480771,1776142550718,-500.0,8.653e-05,2]
[420480772,1776142550757,-500.0,8.653e-05,2]
[420480773,1776142553739,-500.0,8.653e-05,2]
[420480774,1776142553786,-500.0,8.653e-05,2]
[420480775,1776142553834,-500.0,8.653e-05,2]
[420480776,1776142553878,-500.0,8.653e-05,2]
[420480777,1776142553924,-500.0,8.653e-05,2]
[420480778,1776142556646,-500.0,8.653e-05,2]
[420480779,1776142556686,-500.0,8.653e-05,2]
[420480780,1776142556738,-500.0,8.653e-05,2]
[420480781,1776142556777,-500.0,8.653e-05,2]
[420480782,1776142556811,-500.0,8.653e-05,2]
[420480783,1776142557046,200.0,8.346e-05,2]
[420480784,1776142559673,-567.73750962,8.653e-05,2]